fUST/lending_fUST_20251020
["ID","MTS","AMOUNT","RATE_DAILY","PERIOD"]
[391834958,1760898643523,-500.5508042,0.00038356,20]
[391834960,1760898643531,-369.10200652,0.00038356,30]
[391834962,1760898643541,-506.97222847,0.00038356,30]
[391834964,1760898643549,-281.65261081,0.00038356,30]
[391834966,1760898643559,-360.99167225,0.00038356,30]
[391834968,1760898643568,-490.33674303,0.00038356,30]
[391834970,1760898643578,-507.86277404,0.00038356,30]
[391834972,1760898643587,-406.43112051,0.00038356,30]
[391834974,1760898643597,-300.67109192,0.00038356,30]
[391834976,1760898643606,-504.20154902,0.00038356,30]
[391834978,1760898643616,-501.68984301,0.00038356,30]
[391834979,1760898643625,-507.43341577,0.00038356,30]
[391834980,1760898643634,-500.62730375,0.00038356,30]
[391834981,1760898643643,-500.0,0.00038356,30]
[391834982,1760898643653,-501.23339624,0.00038356,30]
[391834983,1760898643662,-202.66793319,0.00038356,30]
[391834984,1760898643671,-1000.0,0.00038356,2]
[391834985,1760898643680,-220.92877068,0.00038356,30]
[391834986,1760898643689,-500.82970179,0.00038356,30]
[391834987,1760898643698,-501.97327364,0.00038356,30]
[391834988,1760898643707,-500.0,0.00038356,30]
[391834989,1760898643717,-502.4789007,0.00038356,30]
[391834990,1760898643726,-504.7881073,0.00038356,30]
[391834991,1760898643735,-502.14987636,0.00038356,30]
[391834992,1760898643744,-527.74527001,0.00038356,30]
[391834993,1760898643753,-500.71980096,0.00038356,30]
[391834994,1760898643762,-500.60296798,0.00038356,30]
[391834995,1760898643772,-512.61017982,0.00038356,30]
[391834996,1760898643781,-502.53160581,0.00038356,30]
[391834997,1760898643791,-504.20773813,0.00038356,30]
[391834998,1760898643800,-500.0,0.00038356,30]
[391835000,1760898643809,-503.00894156,0.00038356,30]
[391835001,1760898643819,-502.30781312,0.00038356,30]
[391835003,1760898643829,-204.87004162,0.00038356,30]
[391835005,1760898643838,-500.0,0.00038356,30]
[391835007,1760898643847,-496.79803597,0.00038356,30]
[391835009,1760898643856,-502.41150553,0.00038356,30]
[391835011,1760898643866,-500.59581971,0.00038356,30]
[391835013,1760898643875,-500.0,0.00038356,30]
[391835015,1760898643885,-501.18673462,0.00038356,30]
[391835017,1760898643898,-502.02132943,0.00038356,30]
[391835019,1760898643907,-501.66269223,0.00038356,30]
[391835021,1760898643916,-501.81457773,0.00038356,30]
[391835023,1760898643925,-501.92954166,0.00038356,30]
[391835025,1760898643934,-500.0,0.00038356,30]
[391835036,1760898644025,-456.02381925,0.00038356,30]
[391835038,1760898644034,-176.24,0.00038356,30]
[391835040,1760898644043,-503.28685323,0.00038356,30]
[391835042,1760898644054,-505.90543263,0.00038356,30]
[391835044,1760898644063,-511.14830979,0.00038356,30]
[391835046,1760898644072,-500.0,0.00038356,30]
[391835048,1760898644082,-500.0,0.00038356,30]
[391835050,1760898644091,-500.0,0.00038356,30]
[391835052,1760898644100,-590.31201532,0.00038356,30]
[391835054,1760898644109,-443.3921481,0.00038356,30]
[391835056,1760898644119,-500.0,0.00038356,30]
[391835058,1760898644128,-504.18021607,0.00038356,30]
[391835060,1760898644138,-503.40801414,0.00038356,30]
[391835062,1760898644147,-500.0,0.00038356,30]
[391835064,1760898644156,-411.24420818,0.00038356,30]
[391835066,1760898644165,-504.06791649,0.00038356,30]
[391835068,1760898644174,-500.0,0.00038356,30]
[391835070,1760898644183,-178.43876984,0.00038356,30]
[391835072,1760898644192,-177.66327654,0.00038356,30]
[391835073,1760898644201,-241.54175993,0.00038356,30]
[391835075,1760898644210,-500.0,0.00038356,30]
[391835077,1760898644220,-501.60249907,0.00038356,30]
[391835079,1760898644229,-500.0,0.00038356,30]
[391835081,1760898644239,-229.13,0.00038356,30]
[391835083,1760898644247,-502.28670814,0.00038356,30]
[391835084,1760898644256,-325.24521206,0.00038356,30]
[391835085,1760898644266,-228.98697418,0.00038356,30]
[391835086,1760898644275,-502.36809133,0.00038356,30]
[391835087,1760898644284,-502.18250287,0.00038356,30]
[391835088,1760898644293,-510.43343403,0.00038356,30]
[391835089,1760898644302,-500.91045503,0.00038356,30]
[391835090,1760898644311,-501.65876429,0.00038356,30]
[391835091,1760898644324,-503.93520523,0.00038356,30]
[391835092,1760898644334,-500.22453037,0.00038356,30]
[391835093,1760898644343,-502.09897734,0.00038356,30]
[391835094,1760898644353,-451.18223954,0.00038356,30]
[391835095,1760898644362,-494.43649346,0.00038356,30]
[391835096,1760898644371,-500.0,0.00038356,30]
[391835097,1760898644380,-431.98901801,0.00038356,30]
[391835098,1760898644390,-500.0,0.00038356,30]
[391835099,1760898644399,-615.63541058,0.00038356,30]
[391835100,1760898644410,-500.0,0.00038356,2]
[391835101,1760898644421,-500.0,0.00038356,30]
[391835102,1760898644431,-405.22,0.00038356,30]
[391835103,1760898644441,-500.0,0.00038356,30]
[391835104,1760898644451,-500.0,0.00038356,30]
[391835105,1760898644462,-215.5,0.00038356,30]
[391835106,1760898644471,-500.0,0.00038356,30]
[391835107,1760898644480,-500.0,0.00038356,30]
[391835108,1760898644490,-500.0,0.00038356,30]
[391835109,1760898644499,-243.24589835,0.00038356,30]
[391835110,1760898645224,300.0,0.000231,2]
[391835147,1760898646041,300.0,0.0002,2]
[391835159,1760898658227,300.0,0.0002,2]
[391835160,1760898658268,300.0,0.000231,2]
[391835163,1760898691766,169.341647,0.00016608,2]
[391835164,1760898705288,500.0,0.00024141,2]
[391835165,1760898705316,500.0,0.00024141,2]
[391835166,1760898705358,500.0,0.00024141,2]
[391835167,1760898705392,609.28272155,0.00024141,2]
[391835168,1760898705421,500.0,0.00024141,2]
[391835169,1760898705448,500.0,0.00024141,2]
[391835170,1760898705477,500.0,0.00024141,2]
[391835171,1760898705504,500.0,0.00024141,2]
[391835172,1760898705532,347.4308575,0.00024141,2]
[391835173,1760898705561,300.0,0.00024141,2]
[391835174,1760898723458,240.86203448,0.00024141,2]
[391835177,1760898750126,332.35,0.00022802,2]
[391835186,1760898830138,328.12,0.00022148,2]
[391835187,1760898838518,2972.62273947,0.00024142,2]
[391835188,1760898838541,1412.02300287,0.00024142,2]
[391835210,1760898908787,325.85,0.00022131,2]
[391835219,1760898984693,417.15472785,0.00024142,2]
[391835220,1760898987431,321.7,0.00022233,2]
[391835567,1760899066963,317.61,0.00022127,2]
[391835569,1760899067385,635.22,0.00024138,2]
[391835572,1760899146544,305.48,0.00023374,2]
[391835573,1760899226551,301.59,0.00022968,2]
[391835575,1760899306335,297.76,0.00023012,2]
[391835579,1760899325823,417.15472785,0.00024142,2]
[391835712,1760899386428,293.97,0.00023007,2]
[391835713,1760899467125,290.22,0.00023048,2]
[391835714,1760899546617,286.53,0.00023471,2]
[391835718,1760899625895,282.88,0.00023046,2]
[391835768,1760899654829,417.15472785,0.00024142,2]
[391835769,1760899705157,281.19,0.00023017,2]
[391835770,1760899710895,300.0,0.000241,2]
[391835771,1760899784974,277.61,0.00023031,2]
[391835806,1760899831996,-678.51505841,0.00024405,2]
[391835808,1760899832006,-921.7521148,0.00024505,2]
[391835809,1760899832017,-276.58616224,0.00024753,2]
[391835811,1760899832027,-150.0,0.00024853,2]
[391835813,1760899832038,-555.23,0.00025125,2]
[391835815,1760899832048,-186.510719,0.000253,2]
[391835817,1760899832060,-2881.2317241,0.00025377,2]
[391835819,1760899832071,-172.5,0.00025453,2]
[391835821,1760899832082,-195.0,0.00026053,2]
[391835823,1760899832093,-307.08225989,0.00026473,2]
[391835824,1760899832103,-300.0,0.00026473,2]
[391835826,1760899832115,-300.0,0.00026473,2]
[391835828,1760899832125,-300.0,0.00026473,2]
[391835830,1760899832136,-300.0,0.00026473,2]
[391835832,1760899832146,-1200.0,0.00026473,2]
[391835833,1760899832156,-300.0,0.00026473,2]
[391835835,1760899832166,-50000.0,0.00026474,2]
[391835837,1760899832178,-1200.0,0.00026573,2]
[391835840,1760899832189,-217.5,0.00026653,2]
[391835841,1760899832199,-759.91788262,0.00027031,2]
[391835843,1760899832209,-281.17350901,0.00027068,2]
[391835845,1760899832219,-199.0,0.00027073,7]
[391835847,1760899832230,-301.4024233,0.00027073,2]
[391835848,1760899832240,-227.53224996,0.00027073,2]
[391835850,1760899832251,-36038.4171926,0.00027074,2]
[391835852,1760899832261,-54589.4268844,0.00027084,2]
[391835853,1760899832271,-666.0,0.00027131,2]
[391835855,1760899832282,-832.84,0.00027219,2]
[391835857,1760899832294,-1110.45,0.00029312,2]
[391835858,1760899832304,-759.91788262,0.00029909,2]
[391835860,1760899832314,-446.034,0.0003,120]
[391835862,1760899832326,-200.0,0.000301,2]
[391835864,1760899832336,-1607.77,0.000301,2]
[391835865,1760899832346,-197.618585,0.00030137,120]
[391835867,1760899832358,-307.08225988,0.00030837,2]
[391835869,1760899832368,-1509.75312985,0.00031,120]
[391835871,1760899832380,-1366.6923286,0.00031,120]
[391835873,1760899832391,-200.0,0.00031,2]
[391835875,1760899832402,-257.55297035,0.0003107,2]
[391835876,1760899832412,-294.34625183,0.0003107,2]
[391835878,1760899832423,-1388.07,0.00031406,2]
[391835880,1760899832433,-484.42886317,0.00031776,2]
[391835892,1760899832576,-459.91601848,0.00031808,2]
[391835894,1760899832591,-1509.75312985,0.000319,120]
[391835896,1760899832600,-1366.6923286,0.000319,120]
[391835898,1760899832610,-340.59,0.000321,2]
[391835900,1760899832619,-759.91788262,0.00032786,2]
[391835902,1760899832628,-1509.75312985,0.000329,120]
[391835903,1760899832637,-1366.6923286,0.000329,120]
[391835905,1760899832647,-1665.68,0.000335,2]
[391835907,1760899832656,-1509.75312985,0.000339,120]
[391835909,1760899832665,-1366.6923286,0.000339,120]
[391835911,1760899832674,-1417.48181898,0.00034263,4]
[391835913,1760899832683,-402.86590842,0.00034509,2]
[391835914,1760899832694,-168.0,0.00034584,2]
[391835916,1760899832703,-168.0,0.00034631,2]
[391835918,1760899832712,-168.0,0.00034768,7]
[391835920,1760899832721,-168.0,0.00034835,2]
[391835922,1760899832731,-1509.75312985,0.000349,120]
[391835923,1760899832740,-1366.6923286,0.000349,120]
[391835925,1760899832749,-197.618585,0.0003516,120]
[391835927,1760899832758,-36038.4171926,0.0003518,2]
[391835929,1760899832768,-307.08225988,0.000352,2]
[391835931,1760899832778,-1607.77,0.000353,2]
[391835932,1760899832788,-168.0,0.00035318,2]
[391835934,1760899832797,-1943.29,0.00035594,2]
[391835936,1760899832806,-1999.0,0.00035616,120]
[391835938,1760899832814,-759.91788262,0.00035664,2]
[391835940,1760899832823,-168.0,0.00035787,2]
[391835941,1760899832832,-1366.6923286,0.000359,120]
[391835943,1760899832841,-168.0,0.0003633,2]
[391835945,1760899832850,-1999.0,0.00036712,120]
[391835947,1760899832860,-204.43065065,0.00036934,5]
[391835949,1760899832869,-1366.6923286,0.00037,120]
[391835950,1760899832878,-168.0,0.0003732,2]
[391835952,1760899832888,-168.0,0.00037387,7]
[391835954,1760899832898,-2220.91,0.00037687,2]
[391835956,1760899832907,-356.61297027,0.00037747,14]
[391835958,1760899832916,-501.51816908,0.00037747,14]
[391835959,1760899832926,-1999.0,0.00037808,120]
[391835961,1760899832936,-6627.0,0.00037846,2]
[391835963,1760899832945,-982.0,0.00037846,2]
[391835965,1760899832955,-411.0,0.00037846,2]
[391835967,1760899832964,-2161.0,0.00037846,2]
[391835969,1760899832974,-631.0,0.00037846,2]
[391835970,1760899832983,-151.0,0.000379,20]
[391835972,1760899832993,-151.0,0.000379,18]
[391835974,1760899833001,-168.0,0.00038044,7]
[391835976,1760899833010,-1366.6923286,0.000381,120]
[391835977,1760899833019,-289.48923361,0.00038167,2]
[391835979,1760899833028,-2134.08036773,0.00038255,2]
[391835981,1760899833037,-151.0,0.000383,13]
[391835983,1760899833047,-36038.4171926,0.00038345,3]
[391835985,1760899833056,-500.0,0.00038355,7]
[391835986,1760899833065,-151.0,0.00038355,120]
[391835988,1760899833074,-151.0,0.00038355,120]
[391835990,1760899833084,-151.0,0.00038355,120]
[391835992,1760899833092,-151.0,0.00038355,120]
[391835994,1760899833101,-153.788007,0.00038355,120]
[391835995,1760899833111,-151.0,0.00038355,120]
[391835997,1760899833120,-151.0,0.00038355,120]
[391835999,1760899833130,-151.0,0.00038355,120]
[391836001,1760899833139,-249.548437,0.00038355,120]
[391836003,1760899833148,-249.548437,0.00038355,120]
[391836004,1760899833157,-151.0,0.00038355,120]
[391836006,1760899833166,-151.0,0.00038355,120]
[391836008,1760899833176,-151.0,0.00038355,120]
[391836010,1760899833185,-151.0,0.00038355,120]
[391836012,1760899833195,-151.0,0.00038355,120]
[391836013,1760899833204,-151.0,0.00038355,120]
[391836015,1760899833213,-17300.0,0.00038355,30]
[391836017,1760899833222,-151.0,0.00038355,30]
[391836019,1760899833231,-10769.45527343,0.00038355,30]
[391836021,1760899833241,-151.0,0.00038355,30]
[391836022,1760899833251,-250.0,0.00038355,30]
[391836024,1760899833260,-250.0,0.00038355,30]
[391836026,1760899833271,-414.0,0.00038355,30]
[391836028,1760899833280,-250.0,0.00038355,30]
[391836030,1760899833291,-250.0,0.00038355,30]
[391836031,1760899833300,-429.318,0.00038355,30]
[391836033,1760899833309,-250.0,0.00038355,30]
[391836035,1760899833319,-250.0,0.00038355,30]
[391836037,1760899833329,-445.202766,0.00038355,30]
[391836038,1760899833338,-250.0,0.00038355,30]
[391836040,1760899833347,-250.0,0.00038355,30]
[391836042,1760899833357,-250.0,0.00038355,30]
[391836044,1760899833369,-250.0,0.00038355,30]
[391836045,1760899833378,-461.67526834,0.00038355,30]
[391836047,1760899833386,-250.0,0.00038355,30]
[391836048,1760899833395,-250.0,0.00038355,30]
[391836050,1760899833404,-478.75725327,0.00038355,30]
[391836051,1760899833413,-496.47127164,0.00038355,30]
[391836053,1760899833422,-514.84070869,0.00038355,30]
[391836055,1760899833430,-533.88981491,0.00038355,30]
[391836056,1760899833440,-553.64373807,0.00038355,30]
[391836058,1760899833449,-512.17581655,0.00038355,30]
[391836060,1760899833458,-151.0,0.00038355,120]
[391836061,1760899833467,-151.0,0.00038355,120]
[391836063,1760899833476,-151.0,0.00038355,120]
[391836065,1760899833486,-1834.9559713,0.00038356,2]
[391836066,1760899833495,-370.27298445,0.00038356,120]
[391836068,1760899833504,-500.0,0.00038356,30]
[391836070,1760899833514,-500.0,0.00038356,30]
[391836072,1760899833523,-500.0,0.00038356,30]
[391836073,1760899833533,-500.0,0.00038356,30]
[391836075,1760899833542,-500.0,0.00038356,30]
[391836077,1760899833552,-500.0,0.00038356,30]
[391836078,1760899833560,-229.41643876,0.00038356,30]
[391836080,1760899833570,-211.16652626,0.00038356,30]
[391836082,1760899833579,-500.73301587,0.00038356,30]
[391836083,1760899833589,-502.57483391,0.00038356,30]
[391836084,1760899833599,-396.72182664,0.00038356,30]
[391836085,1760899833609,-344.25620769,0.00038356,30]
[391836086,1760899833619,-510.04210003,0.00038356,30]
[391836087,1760899833630,-508.38743053,0.00038356,30]
[391836088,1760899833640,-19349.7519491,0.00038356,2]
[391836089,1760899833649,-502.73008445,0.00038356,30]
[391836090,1760899833659,-500.0,0.00038356,2]
[391836091,1760899833668,-500.0,0.00038356,2]
[391836092,1760899833678,-474.3,0.00038356,2]
[391836093,1760899833687,-168.0,0.00038453,2]
[391836094,1760899833697,-759.91788262,0.00038541,2]
[391836095,1760899833706,-151.0,0.00038576,7]
[391836096,1760899833715,-151.0,0.00038576,120]
[391836097,1760899833724,-151.0,0.00038576,120]
[391836098,1760899833734,-36038.4171926,0.00038576,3]
[391836099,1760899833743,-73334.59292452,0.0003861,4]
[391836496,1760899837859,-200.0,0.00026473,2]
[391836498,1760899837869,-205.27009528,0.00026473,2]
[391836500,1760899837879,-224.593593,0.00038355,120]
[391836502,1760899837889,-224.593593,0.00038355,120]
[391836504,1760899837899,-5084.42515167,0.0003861,4]
[391836506,1760899837914,-30964.37346981,0.0003861,4]
[391836685,1760899840177,-224.593593,0.00038355,120]
[391836687,1760899840187,-224.593593,0.00038355,120]
[391836689,1760899840197,-647.14205383,0.0003861,4]
[391836698,1760899840285,-6439.80186475,0.0003861,4]
[391836927,1760899843113,-206.9896312,0.00035995,2]
[391836929,1760899843124,-333.88308904,0.0003861,4]
[391836982,1760899846149,-4829.22492376,0.0003861,4]
[391837014,1760899983168,417.15472785,0.00024142,2]
[391837015,1760900012975,150.42,0.00023036,2]
[391837016,1760900090878,150.41,0.00022956,2]
[391837018,1760900167571,150.0,0.00022857,2]
[391837024,1760900246174,155.88,0.00022817,2]
[391837025,1760900250059,417.15472785,0.00024,3]
[391837026,1760900256930,417.15472785,0.00024,3]
[391837027,1760900325242,163.14,0.00023892,2]
[391837028,1760900328051,417.15472785,0.00024142,2]
[391837029,1760900405226,170.21,0.00024056,2]
[391837041,1760900485459,168.04,0.00024093,2]
[391837045,1760900566416,42.19390218,0.00024053,2]
[391837046,1760900566440,123.70609782,0.00024053,2]
[391837048,1760900619250,-198.74335244,0.00025105,2]
[391837049,1760900619283,-150.0,0.00025105,2]
[391837050,1760900619314,-200.0,0.00025205,2]
[391837051,1760900619343,-172.5,0.00025705,2]
[391837052,1760900619377,-125.70329512,0.00026239,2]
[391837053,1760900619390,-198.74335244,0.00026239,2]
[391837054,1760900619402,-7.36335244,0.00026239,2]
[391837055,1760900619412,-142.63664756,0.00026305,2]
[391837056,1760900619424,-52.36335244,0.00026305,2]
[391837057,1760900619434,-147.63664756,0.00026905,2]
[391837058,1760900619446,-69.86335244,0.00026905,2]
[391837059,1760900619456,-102.63664756,0.00027505,2]
[391837060,1760900619468,-137.36335244,0.00027505,2]
[391837061,1760900619477,-194.44664756,0.00028105,2]
[391837063,1760900642811,-150.0,0.00025592,2]
[391837064,1760900642843,-68.05335244,0.00028105,2]
[391837065,1760900642872,-164.32720212,0.00028273,2]
[391837066,1760900642884,-150.0,0.00028273,2]
[391837067,1760900642895,-68.05335244,0.00028273,2]
[391837068,1760900642906,-117.18553844,0.00028273,2]
[391837069,1760900642916,-285.0,0.00028705,2]
[391837070,1760900642926,-97.38055456,0.00029205,2]
[391837071,1760900646715,159.57,0.00023362,2]
[391837072,1760900682974,-319.14,0.00025485,2]
[391837073,1760900683006,-478.71,0.00027609,2]
[391837074,1760900683035,-483.08602447,0.00029205,2]
[391837075,1760900683066,-210.05006742,0.00029304,2]
[391837076,1760900683079,-18.02781622,0.00029304,2]
[391837077,1760900683088,-248.9846705,0.00029304,2]
[391837078,1760900683097,-52.12751328,0.00029304,2]
[391837079,1760900683107,-247.87248672,0.00029304,2]
[391837080,1760900683115,-230.83751328,0.00029305,2]
[391837081,1760900683125,-483.08602447,0.00029305,2]
[391837082,1760900683134,-228.07788364,0.00029305,2]
[391837083,1760900724364,156.39,0.00022945,2]
[391837085,1760900804442,154.4,0.00022594,2]
[391837088,1760900884973,152.43,0.00022553,2]
[391837089,1760900964004,150.49,0.0002358,2]
[391837090,1760900972229,417.15472785,0.00024142,2]
[391837091,1760901019267,830.94233587,0.00024142,2]
[391837107,1760901032211,-300.99,0.00025724,2]
[391837109,1760901032221,-200.0,0.00026307,2]
[391837111,1760901032231,-2720.7882868,0.0002763,2]
[391837113,1760901032242,-300.0,0.00027739,2]
[391837115,1760901032253,-1200.0,0.00027739,2]
[391837117,1760901032263,-14369.7638152,0.0002774,2]
[391837120,1760901032275,-1005.512651,0.0002774,2]
[391837121,1760901032287,-485.51600727,0.0002774,2]
[391837124,1760901032299,-462.228,0.0002774,2]
[391837126,1760901032310,-1695.22309974,0.0002774,2]
[391837194,1760901038226,-6381.18936509,0.0002774,2]
[391837195,1760901038236,-307.5,0.00029305,2]
[391837196,1760901038246,-330.0,0.00029905,2]
[391837197,1760901038257,-420.0,0.00029966,2]
[391837198,1760901038267,-25709.30879992,0.00029966,2]
[391837199,1760901038279,-23328.34812143,0.00029966,2]
[391837200,1760901038289,-702.0,0.00030097,2]
[391837201,1760901038299,-1200.0,0.00030136,2]
[391837202,1760901038309,-500.0,0.00030137,2]
[391837203,1760901038318,-293.96403537,0.00030137,2]
[391837204,1760901038328,-500.0,0.00030137,2]
[391837205,1760901038338,-500.0,0.00030137,2]
[391837206,1760901038348,-500.0,0.00030137,2]
[391837207,1760901038367,-500.0,0.00030137,2]
[391837208,1760901038377,-500.0,0.00030137,2]
[391837209,1760901038386,-500.0,0.00030137,2]
[391837210,1760901038396,-500.0,0.00030137,2]
[391837211,1760901038407,-342.21054675,0.00030299,2]
[391837212,1760901038416,-227.42385251,0.00030299,2]
[391837213,1760901038425,-500.07598891,0.000303,5]
[391837214,1760901038435,-280.21393444,0.000303,5]
[391837215,1760901038445,-500.0,0.000303,5]
[391837216,1760901038454,-500.0,0.000303,5]
[391837217,1760901038464,-546.67693144,0.00031,120]
[391837218,1760901038475,-1163.33,0.00031,2]
[391837219,1760901038485,-186.99923779,0.00031,120]
[391837220,1760901038494,-216.99073061,0.00031,120]
[391837221,1760901038504,-316.61169258,0.00031174,2]
[391837222,1760901038515,-846.71830742,0.00031174,2]
[391837223,1760901038525,-546.67693144,0.000319,120]
[391837224,1760901038534,-186.99923779,0.000319,120]
[391837225,1760901038544,-255.0,0.00032372,2]
[391837226,1760901038554,-714.34362777,0.0003258,2]
[391837236,1760901040277,-59143.50951293,0.0003258,2]
[391837237,1760901040289,-95000.0,0.0003259,30]
[391837238,1760901040298,-417.15472785,0.0003259,30]
[391837239,1760901040308,-1210.99,0.000326,2]
[391837240,1760901040319,-46190.12,0.000326,7]
[391837241,1760901040330,-546.67693144,0.000329,120]
[391837243,1760901040340,-186.99923779,0.000329,120]
[391837245,1760901040349,-417.15472785,0.000336,30]
[391837246,1760901040359,-546.67693144,0.000339,120]
[391837248,1760901040368,-150.0,0.000347,20]
[391837250,1760901040379,-546.67693144,0.000349,120]
[391837252,1760901040388,-1999.0,0.00035616,120]
[391837254,1760901040397,-982.0,0.00036336,2]
[391837256,1760901040407,-2162.0,0.0003634,2]
[391837258,1760901040416,-631.0,0.0003634,2]
[391837259,1760901040426,-1999.0,0.00036712,120]
[391837261,1760901040436,-392.6151505,0.0003674,30]
[391837262,1760901040450,-133.77917659,0.0003674,30]
[391837263,1760901042299,150.0,0.00023343,2]
[391837290,1760901043259,-289.49,0.00025465,2]
[391837292,1760901043268,-434.24,0.00027587,2]
[391837294,1760901043278,-258.83597391,0.0003674,30]
[391837296,1760901043287,-392.6151505,0.0003674,30]
[391837298,1760901043296,-500.0,0.000376,30]
[391837300,1760901043305,-356.51786613,0.000376,30]
[391837301,1760901043315,-1999.0,0.00037808,120]
[391837303,1760901043324,-25268.0293394,0.00038346,3]
[391837316,1760901043438,-329.52670599,0.00038346,3]
[391837319,1760901043450,-1830.28391799,0.00038346,3]
[391839724,1760901120001,150.0,0.0002315,2]
[391839727,1760901166470,557.045943,0.00013699,2]
[391839728,1760901166653,557.045943,0.00020187,2]
[391839730,1760901199249,150.0,0.00023113,2]
[391839731,1760901278954,150.0,0.00022494,2]
[391839732,1760901321439,417.15472785,0.00024142,2]
[391839733,1760901359438,150.0,0.00022806,2]
[391839743,1760901439164,150.0,0.00022834,2]
[391839746,1760901520099,150.0,0.00023823,2]
[391839748,1760901737710,3717.14472785,0.00024142,2]
[391839751,1760901752842,1556.53549676,0.00024142,2]
[391839752,1760901752864,1117.60391147,0.00024142,2]
[391839753,1760901809689,300.0,0.000241,2]
[391839754,1760901889602,150.0,0.0002307,2]
[391839783,1760901964676,150.0,0.0002378,2]
[391839786,1760901970594,417.15472785,0.00024142,2]
[391839799,1760902045039,150.0,0.0002382,2]
[391839826,1760902115780,2549.70063,0.00015,2]
[391839828,1760902116178,1374.52036674,0.0002061,2]
[391839830,1760902116737,959.34347698,0.00019,2]
[391839832,1760902117203,588.48105727,0.000149,2]
[391839833,1760902117550,1000.0,0.0001,2]
[391839835,1760902118061,1243.20582969,0.00018,2]
[391839836,1760902118084,2401.05987197,0.00018,2]
[391839837,1760902119311,4545.649954,0.0002,120]
[391839838,1760902120027,272.07592974,0.00024,7]
[391839842,1760902120886,3333.7857577,0.0002,2]
[391839853,1760902124784,150.0,0.00023112,2]
[391839858,1760902128109,3843.08844059,0.00024142,2]
[391839859,1760902128133,1156.91155941,0.00024142,2]
[391839860,1760902135944,5000.0,0.00024142,2]
[391839861,1760902158741,678.7218585,0.00024142,2]
[391839862,1760902170406,300.0,0.000238,2]
[391839863,1760902214489,260.54,0.0002341,2]
[391839891,1760902232362,-150.0,0.00024245,2]
[391839893,1760902232372,-200.0,0.00024245,2]
[391839895,1760902232382,-172.5,0.00024845,2]
[391839898,1760902232392,-195.0,0.00025445,2]
[391839900,1760902232402,-666.0,0.00025515,2]
[391839902,1760902232411,-521.08,0.00025538,2]
[391839904,1760902232421,-1426.5502269,0.00025575,2]
[391839906,1760902232431,-1666.02743862,0.00026,30]
[391839908,1760902232440,-217.5,0.00026045,2]
[391839910,1760902232450,-557.045943,0.00026676,2]
[391839912,1760902232459,-308.0,0.00026848,2]
[391839914,1760902232471,-781.62,0.00027666,2]
[391839916,1760902232480,-300.0,0.00028058,2]
[391839918,1760902232490,-300.0,0.00028058,2]
[391839920,1760902232503,-1001.97875176,0.00028059,2]
[391839922,1760902232513,-500.0,0.00028059,2]
[391839924,1760902232523,-360.58282688,0.00028059,2]
[391839926,1760902232532,-500.0,0.00028059,2]
[391839928,1760902232542,-500.0,0.00028059,2]
[391839930,1760902232552,-500.0,0.00028059,2]
[391839932,1760902232562,-500.0,0.00028059,2]
[391839934,1760902232572,-500.0,0.00028059,2]
[391839936,1760902232582,-500.0,0.00028059,2]
[391839938,1760902232591,-500.0,0.00028059,2]
[391839940,1760902232600,-500.0,0.00028059,2]
[391839941,1760902232610,-500.0,0.00028059,2]
[391839943,1760902232619,-500.0,0.00028059,2]
[391839945,1760902232629,-500.0,0.00028059,2]